[Event "Titled Tuesday Blitz February 22 Late 2022"]
[White "Hasangatin, Ramil"]
[Black "Timofeev, Artyom"]
[WhiteFideId "4122160"]
[BlackFideId "4140419"]
[WhiteElo "2375"]
[BlackElo "2583"]
[Result "1/2-1/2"]
[Round "05"]
[TimeControl "180+1"]
[Date "2022.02.22"]
[WhiteClock "0:00:04"]
[BlackClock "0:00:13"]

1. e4 {[%clk 0:03:00]}  d6 {[%clk 0:02:59]} 2. d4 {[%clk 0:03:00]}  Nf6 {[%clk 0:02:59]} 3. Nc3 {[%clk 0:03:01]}  g6 {[%clk 0:02:59]} 4. Nf3 {[%clk 0:03:01]}  Bg7 {[%clk 0:02:59]} 5. h3 {[%clk 0:03:01]}  O-O {[%clk 0:02:59]} 6. Be3 {[%clk 0:03:02]}  a6 {[%clk 0:02:57]} 7. a4 {[%clk 0:02:52]}  Nc6 {[%clk 0:02:54]} 8. d5 {[%clk 0:02:52]}  Nb8 {[%clk 0:02:53]} 9. a5 {[%clk 0:02:48]}  Nbd7 {[%clk 0:02:50]} 10. Bc4 {[%clk 0:02:32]}  c6 {[%clk 0:02:47]} 11. O-O {[%clk 0:02:31]}  cxd5 {[%clk 0:02:45]} 12. exd5 {[%clk 0:02:31]}  Qc7 {[%clk 0:02:45]} 13. Qe2 {[%clk 0:02:23]}  Nc5 {[%clk 0:02:41]} 14. Bd4 {[%clk 0:02:19]}  Re8 {[%clk 0:02:27]} 15. Rfe1 {[%clk 0:02:18]}  Bf5 {[%clk 0:02:14]} 16. b4 {[%clk 0:01:27]}  Ncd7 {[%clk 0:01:58]} 17. Bb3 {[%clk 0:01:26]}  Rac8 {[%clk 0:01:39]} 18. g4 {[%clk 0:01:20]}  Nxg4 {[%clk 0:01:36]} 19. hxg4 {[%clk 0:01:20]}  Bxg4 {[%clk 0:01:36]} 20. Bxg7 {[%clk 0:01:19]}  Kxg7 {[%clk 0:01:37]} 21. Ne4 {[%clk 0:01:11]}  Ne5 {[%clk 0:01:32]} 22. Ned2 {[%clk 0:00:33]}  Qc3 {[%clk 0:01:32]} 23. Kg2 {[%clk 0:00:17]}  Qxb4 {[%clk 0:01:30]} 24. Qe4 {[%clk 0:00:13]}  Qxe4 {[%clk 0:01:03]} 25. Rxe4 {[%clk 0:00:14]}  Bf5 {[%clk 0:00:55]} 26. Re2 {[%clk 0:00:14]}  Bxc2 {[%clk 0:00:39]} 27. Nxe5 {[%clk 0:00:13]}  dxe5 {[%clk 0:00:39]} 28. Rxe5 {[%clk 0:00:14]}  Bxb3 {[%clk 0:00:36]} 29. Nxb3 {[%clk 0:00:15]}  Kf6 {[%clk 0:00:32]} 30. Re3 {[%clk 0:00:14]}  Red8 {[%clk 0:00:31]} 31. Rd1 {[%clk 0:00:14]}  Rd6 {[%clk 0:00:30]} 32. Rf3+ {[%clk 0:00:13]}  Kg7 {[%clk 0:00:30]} 33. Re3 {[%clk 0:00:14]}  Rc7 {[%clk 0:00:30]} 34. Red3 {[%clk 0:00:12]}  h5 {[%clk 0:00:29]} 35. f4 {[%clk 0:00:11]}  Kf6 {[%clk 0:00:27]} 36. Kg3 {[%clk 0:00:12]}  Rc4 {[%clk 0:00:27]} 37. Nd2 {[%clk 0:00:09]}  Ra4 {[%clk 0:00:26]} 38. Kf3 {[%clk 0:00:10]}  Kf5 {[%clk 0:00:16]} 39. Re1 {[%clk 0:00:10]}  f6 {[%clk 0:00:16]} 40. Rxe7 {[%clk 0:00:09]}  Rxa5 {[%clk 0:00:16]} 41. Rxb7 {[%clk 0:00:08]}  Rdxd5 {[%clk 0:00:16]} 42. Rxd5+ {[%clk 0:00:07]}  Rxd5 {[%clk 0:00:16]} 43. Ke3 {[%clk 0:00:07]}  g5 {[%clk 0:00:15]} 44. fxg5 {[%clk 0:00:06]}  fxg5 {[%clk 0:00:16]} 45. Rf7+ {[%clk 0:00:07]}  Kg4 {[%clk 0:00:16]} 46. Ne4 {[%clk 0:00:06]}  Re5 {[%clk 0:00:16]} 47. Kd4 {[%clk 0:00:06]}  Re6 {[%clk 0:00:16]} 48. Rf1 {[%clk 0:00:06]}  Rg6 {[%clk 0:00:15]} 49. Rg1+ {[%clk 0:00:06]}  Kf4 {[%clk 0:00:16]} 50. Rf1+ {[%clk 0:00:06]}  Kg4 {[%clk 0:00:16]} 51. Rg1+ {[%clk 0:00:06]}  Kf5 {[%clk 0:00:16]} 52. Rf1+ {[%clk 0:00:06]}  Ke6 {[%clk 0:00:17]} 53. Nc5+ {[%clk 0:00:06]}  Ke7 {[%clk 0:00:15]} 54. Re1+ {[%clk 0:00:04]}  Kf7 {[%clk 0:00:15]} 55. Rf1+ {[%clk 0:00:04]}  Kg7 {[%clk 0:00:14]} 56. Ke5 {[%clk 0:00:03]}  g4 {[%clk 0:00:14]} 57. Ne6+ {[%clk 0:00:03]}  Kh6 {[%clk 0:00:14]} 58. Rf8 {[%clk 0:00:03]}  Kh7 {[%clk 0:00:14]} 59. Rf7+ {[%clk 0:00:03]}  Kg8 {[%clk 0:00:14]} 60. Rf8+ {[%clk 0:00:03]}  Kh7 {[%clk 0:00:14]} 61. Rf7+ {[%clk 0:00:04]}  Kg8 {[%clk 0:00:12]} 62. Rf8+ {[%clk 0:00:04]}  Kh7 {[%clk 0:00:13]} 1/2-1/2


[Site "https://www.chess.com"]

[Event "Titled Tuesday Blitz February 22 Late 2022"]
[White "Hess, Robert"]
[Black "Tari, Aryan"]
[WhiteFideId "2022036"]
[BlackFideId "1510045"]
[WhiteElo "2557"]
[BlackElo "2567"]
[Result "1-0"]
[Round "05"]
[TimeControl "180+1"]
[Date "2022.02.22"]
[WhiteClock "0:00:02"]
[BlackClock "0:00:03"]

1. b3 {[%clk 0:03:00]}  a5 {[%clk 0:02:58]} 2. c4 {[%clk 0:02:56]}  a4 {[%clk 0:02:55]} 3. bxa4 {[%clk 0:02:57]}  Nf6 {[%clk 0:02:51]} 4. e3 {[%clk 0:02:57]}  e6 {[%clk 0:02:51]} 5. Nf3 {[%clk 0:02:56]}  d5 {[%clk 0:02:50]} 6. Nc3 {[%clk 0:02:54]}  Be7 {[%clk 0:02:45]} 7. Bb2 {[%clk 0:02:53]}  O-O {[%clk 0:02:45]} 8. d4 {[%clk 0:02:50]}  Ne4 {[%clk 0:02:39]} 9. Nxe4 {[%clk 0:02:42]}  dxe4 {[%clk 0:02:39]} 10. Nd2 {[%clk 0:02:42]}  f5 {[%clk 0:02:39]} 11. c5 {[%clk 0:02:42]}  Nd7 {[%clk 0:02:26]} 12. Bc4 {[%clk 0:02:38]}  Nf6 {[%clk 0:02:27]} 13. Bb3 {[%clk 0:02:30]}  Nd5 {[%clk 0:02:25]} 14. O-O {[%clk 0:02:24]}  Bd7 {[%clk 0:02:26]} 15. Nc4 {[%clk 0:02:21]}  Qe8 {[%clk 0:02:24]} 16. a5 {[%clk 0:02:22]}  Bb5 {[%clk 0:02:15]} 17. Qd2 {[%clk 0:02:18]}  Bg5 {[%clk 0:02:08]} 18. Rfe1 {[%clk 0:01:56]}  Kh8 {[%clk 0:01:55]} 19. Ne5 {[%clk 0:01:56]}  f4 {[%clk 0:01:55]} 20. Qc2 {[%clk 0:01:12]}  fxe3 {[%clk 0:01:43]} 21. fxe3 {[%clk 0:01:12]}  Bxe3+ {[%clk 0:01:10]} 22. Kh1 {[%clk 0:00:42]}  Rf2 {[%clk 0:00:39]} 23. Qxe4 {[%clk 0:00:42]}  Bf4 {[%clk 0:00:20]} 24. Bxd5 {[%clk 0:00:21]}  exd5 {[%clk 0:00:21]} 25. Qf5 {[%clk 0:00:10]}  Qf8 {[%clk 0:00:15]} 26. Qxf8+ {[%clk 0:00:03]}  Rxf8 {[%clk 0:00:16]} 27. Bc1 {[%clk 0:00:02]}  Bxe5 {[%clk 0:00:15]} 28. Be3 {[%clk 0:00:03]}  Bg3 {[%clk 0:00:03]} 29. hxg3 {[%clk 0:00:02]}  R2f6 {[%clk 0:00:03]} 30. Bf4 {[%clk 0:00:02]}  c6 {[%clk 0:00:02]} 31. Re7 {[%clk 0:00:02]}  Ba6 {[%clk 0:00:03]} 32. Rae1 {[%clk 0:00:02]}  h6 {[%clk 0:00:03]} 33. Kg1 {[%clk 0:00:03]}  Kg8 {[%clk 0:00:03]} 34. Be5 {[%clk 0:00:03]}  Rg6 {[%clk 0:00:02]} 35. Re3 {[%clk 0:00:02]}  Rf1+ {[%clk 0:00:02]} 36. Kh2 {[%clk 0:00:03]}  Rf5 {[%clk 0:00:03]} 37. Rf3 {[%clk 0:00:03]}  Rxf3 {[%clk 0:00:02]} 38. gxf3 {[%clk 0:00:03]}  h5 {[%clk 0:00:02]} 39. f4 {[%clk 0:00:03]}  h4 {[%clk 0:00:03]} 40. gxh4 {[%clk 0:00:02]}  Rg4 {[%clk 0:00:03]} 41. f5 {[%clk 0:00:02]}  Kf8 {[%clk 0:00:02]} 42. Rc7 {[%clk 0:00:02]}  Rxh4+ {[%clk 0:00:02]} 43. Kg3 {[%clk 0:00:02]}  Rh7 {[%clk 0:00:03]} 44. f6 {[%clk 0:00:02]}  Kg8 {[%clk 0:00:03]} 45. f7+ {[%clk 0:00:02]} 1-0


[Site "https://www.chess.com"]

[Event "Titled Tuesday Blitz February 22 Late 2022"]
[White "Hjartarson, Johann"]
[Black "Gracia Alvarez, Gerardo Antonio"]
[WhiteFideId "2300044"]
[BlackFideId "5109124"]
[WhiteElo "2484"]
[BlackElo "2139"]
[Result "1-0"]
[Round "05"]
[TimeControl "180+1"]
[Date "2022.02.23"]
[WhiteClock "0:01:08"]
[BlackClock "0:00:17"]

1. c4 {[%clk 0:03:00]}  g6 {[%clk 0:02:58]} 2. g3 {[%clk 0:03:00]}  Bg7 {[%clk 0:02:58]} 3. Bg2 {[%clk 0:03:00]}  Nf6 {[%clk 0:02:57]} 4. Nc3 {[%clk 0:02:59]}  O-O {[%clk 0:02:56]} 5. e4 {[%clk 0:02:59]}  d6 {[%clk 0:02:53]} 6. Nge2 {[%clk 0:02:58]}  c5 {[%clk 0:02:52]} 7. d3 {[%clk 0:02:57]}  Nc6 {[%clk 0:02:51]} 8. h3 {[%clk 0:02:57]}  Ne8 {[%clk 0:02:49]} 9. O-O {[%clk 0:02:48]}  Nc7 {[%clk 0:02:47]} 10. Be3 {[%clk 0:02:46]}  Ne6 {[%clk 0:02:47]} 11. f4 {[%clk 0:02:43]}  a6 {[%clk 0:02:45]} 12. Qd2 {[%clk 0:02:39]}  Rb8 {[%clk 0:02:43]} 13. f5 {[%clk 0:02:29]}  Ned4 {[%clk 0:02:42]} 14. Bh6 {[%clk 0:02:26]}  b5 {[%clk 0:02:38]} 15. Bxg7 {[%clk 0:02:22]}  Kxg7 {[%clk 0:02:39]} 16. b3 {[%clk 0:02:19]}  Bd7 {[%clk 0:02:13]} 17. Rf2 {[%clk 0:02:17]}  Qa5 {[%clk 0:02:11]} 18. f6+ {[%clk 0:01:50]}  exf6 {[%clk 0:02:06]} 19. Qf4 {[%clk 0:01:50]}  f5 {[%clk 0:01:31]} 20. Qxd6 {[%clk 0:01:45]}  b4 {[%clk 0:01:13]} 21. Nd5 {[%clk 0:01:33]}  Be6 {[%clk 0:00:56]} 22. exf5 {[%clk 0:01:31]}  Rbd8 {[%clk 0:00:34]} 23. f6+ {[%clk 0:01:16]}  Kh8 {[%clk 0:00:34]} 24. Qf4 {[%clk 0:01:16]}  Nxe2+ {[%clk 0:00:32]} 25. Rxe2 {[%clk 0:01:15]}  Nd4 {[%clk 0:00:29]} 26. Re4 {[%clk 0:01:09]}  h5 {[%clk 0:00:17]} 27. Qh6+ {[%clk 0:01:08]} 1-0


[Site "https://www.chess.com"]

[Event "Titled Tuesday Blitz February 22 Late 2022"]
[White "Horak, Martin"]
[Black "Rosen, Eric"]
[WhiteFideId "367095"]
[BlackFideId "2032562"]
[WhiteElo "1997"]
[BlackElo "2362"]
[Result "0-1"]
[Round "05"]
[TimeControl "180+1"]
[Date "2022.02.23"]
[WhiteClock "0:00:01"]
[BlackClock "0:00:12"]

1. d4 {[%clk 0:02:42]}  Nf6 {[%clk 0:02:57]} 2. c4 {[%clk 0:02:40]}  e6 {[%clk 0:02:56]} 3. g3 {[%clk 0:02:41]}  d5 {[%clk 0:02:55]} 4. Bg2 {[%clk 0:02:40]}  dxc4 {[%clk 0:02:53]} 5. Nf3 {[%clk 0:02:41]}  Bb4+ {[%clk 0:02:53]} 6. Bd2 {[%clk 0:02:41]}  c5 {[%clk 0:02:53]} 7. O-O {[%clk 0:02:38]}  O-O {[%clk 0:02:53]} 8. dxc5 {[%clk 0:02:15]}  Bxc5 {[%clk 0:02:53]} 9. Na3 {[%clk 0:02:15]}  a6 {[%clk 0:02:23]} 10. Nxc4 {[%clk 0:02:12]}  b5 {[%clk 0:02:23]} 11. Nce5 {[%clk 0:02:09]}  Bb7 {[%clk 0:02:21]} 12. Rc1 {[%clk 0:02:04]}  Qb6 {[%clk 0:02:18]} 13. b4 {[%clk 0:01:47]}  Bd4 {[%clk 0:01:50]} 14. Bf4 {[%clk 0:01:10]}  Rd8 {[%clk 0:01:37]} 15. Qc2 {[%clk 0:00:53]}  Nbd7 {[%clk 0:01:12]} 16. Nc6 {[%clk 0:00:45]}  Bxf2+ {[%clk 0:00:46]} 17. Rxf2 {[%clk 0:00:32]}  Ng4 {[%clk 0:00:46]} 18. e3 {[%clk 0:00:32]}  Nxf2 {[%clk 0:00:46]} 19. Kxf2 {[%clk 0:00:32]}  Bxc6 {[%clk 0:00:28]} 20. Qxc6 {[%clk 0:00:33]}  Qxc6 {[%clk 0:00:29]} 21. Rxc6 {[%clk 0:00:33]}  Nf6 {[%clk 0:00:29]} 22. Ne5 {[%clk 0:00:16]}  Rd2+ {[%clk 0:00:28]} 23. Kf1 {[%clk 0:00:11]}  Rxa2 {[%clk 0:00:17]} 24. Rc7 {[%clk 0:00:07]}  Rd8 {[%clk 0:00:15]} 25. Bf3 {[%clk 0:00:04]}  Ne4 {[%clk 0:00:12]} 26. Re7 {[%clk 0:00:01]}  Nd2+ {[%clk 0:00:12]} 0-1


[Site "https://www.chess.com"]

[Event "Titled Tuesday Blitz February 22 Late 2022"]
[White "Jarocka, Liwia"]
[Black "Jaferian, Koosha"]
[WhiteFideId "21807558"]
[BlackFideId "12507440"]
[WhiteElo "1896"]
[BlackElo "2027"]
[Result "0-1"]
[Round "05"]
[TimeControl "180+1"]
[Date "2022.02.23"]
[WhiteClock "0:00:07"]
[BlackClock "0:00:08"]

1. c4 {[%clk 0:03:00]}  Nf6 {[%clk 0:02:58]} 2. Nf3 {[%clk 0:03:00]}  e6 {[%clk 0:02:58]} 3. Nc3 {[%clk 0:02:56]}  Bb4 {[%clk 0:02:53]} 4. g3 {[%clk 0:02:51]}  O-O {[%clk 0:02:51]} 5. Bg2 {[%clk 0:02:51]}  c5 {[%clk 0:02:46]} 6. O-O {[%clk 0:02:45]}  Nc6 {[%clk 0:02:42]} 7. e3 {[%clk 0:02:38]}  Ba5 {[%clk 0:02:24]} 8. d4 {[%clk 0:02:34]}  cxd4 {[%clk 0:02:24]} 9. exd4 {[%clk 0:02:24]}  d5 {[%clk 0:02:24]} 10. Ne5 {[%clk 0:02:19]}  Bc7 {[%clk 0:02:18]} 11. Nxc6 {[%clk 0:02:13]}  bxc6 {[%clk 0:02:18]} 12. Re1 {[%clk 0:02:11]}  Ba6 {[%clk 0:02:15]} 13. cxd5 {[%clk 0:02:07]}  cxd5 {[%clk 0:02:16]} 14. Bg5 {[%clk 0:02:06]}  Rc8 {[%clk 0:02:11]} 15. Rc1 {[%clk 0:02:04]}  Ba5 {[%clk 0:02:07]} 16. Bf1 {[%clk 0:01:52]}  Bxf1 {[%clk 0:02:07]} 17. Rxf1 {[%clk 0:01:53]}  h6 {[%clk 0:02:04]} 18. Bxf6 {[%clk 0:01:32]}  Qxf6 {[%clk 0:02:04]} 19. Ne2 {[%clk 0:01:29]}  Bb6 {[%clk 0:01:58]} 20. Qd3 {[%clk 0:01:27]}  Qe7 {[%clk 0:01:45]} 21. a3 {[%clk 0:01:26]}  Qg5 {[%clk 0:01:43]} 22. f4 {[%clk 0:01:24]}  Qg4 {[%clk 0:01:38]} 23. Kg2 {[%clk 0:01:23]}  Qh5 {[%clk 0:01:22]} 24. h3 {[%clk 0:01:21]}  Rfd8 {[%clk 0:01:10]} 25. g4 {[%clk 0:01:20]}  Qh4 {[%clk 0:01:10]} 26. f5 {[%clk 0:01:11]}  Rxc1 {[%clk 0:01:02]} 27. Rxc1 {[%clk 0:01:02]}  exf5 {[%clk 0:01:00]} 28. Qxf5 {[%clk 0:00:59]}  g6 {[%clk 0:00:52]} 29. Qf2 {[%clk 0:00:54]}  Qg5 {[%clk 0:00:48]} 30. Rf1 {[%clk 0:00:52]}  Rf8 {[%clk 0:00:45]} 31. Qf4 {[%clk 0:00:48]}  Qe7 {[%clk 0:00:44]} 32. Rf2 {[%clk 0:00:44]}  Kh7 {[%clk 0:00:44]} 33. Qf6 {[%clk 0:00:43]}  Qe4+ {[%clk 0:00:43]} 34. Qf3 {[%clk 0:00:42]}  Qe6 {[%clk 0:00:38]} 35. Qf6 {[%clk 0:00:42]}  Qe4+ {[%clk 0:00:36]} 36. Qf3 {[%clk 0:00:40]}  Qe6 {[%clk 0:00:36]} 37. Qf6 {[%clk 0:00:39]}  Qxf6 {[%clk 0:00:36]} 38. Rxf6 {[%clk 0:00:39]}  Kg7 {[%clk 0:00:34]} 39. Rd6 {[%clk 0:00:39]}  Rc8 {[%clk 0:00:35]} 40. Kf3 {[%clk 0:00:38]}  Rc2 {[%clk 0:00:33]} 41. b4 {[%clk 0:00:38]}  Ra2 {[%clk 0:00:33]} 42. Rxd5 {[%clk 0:00:37]}  Rxa3+ {[%clk 0:00:34]} 43. Kf2 {[%clk 0:00:33]}  Rxh3 {[%clk 0:00:34]} 44. b5 {[%clk 0:00:33]}  Rd3 {[%clk 0:00:32]} 45. Rd7 {[%clk 0:00:30]}  Rb3 {[%clk 0:00:32]} 46. Rd5 {[%clk 0:00:28]}  Rb2 {[%clk 0:00:29]} 47. Ke3 {[%clk 0:00:28]}  Rb3+ {[%clk 0:00:30]} 48. Kf2 {[%clk 0:00:25]}  Ra3 {[%clk 0:00:28]} 49. Nf4 {[%clk 0:00:25]}  Ra4 {[%clk 0:00:23]} 50. Ke3 {[%clk 0:00:24]}  Rb4 {[%clk 0:00:22]} 51. Ke4 {[%clk 0:00:22]}  Rb1 {[%clk 0:00:20]} 52. Rd7 {[%clk 0:00:22]}  Re1+ {[%clk 0:00:20]} 53. Kd5 {[%clk 0:00:19]}  Rd1 {[%clk 0:00:18]} 54. Ne6+ {[%clk 0:00:18]}  Kf6 {[%clk 0:00:18]} 55. Nc5 {[%clk 0:00:18]}  Rg1 {[%clk 0:00:13]} 56. Ne4+ {[%clk 0:00:17]}  Kg7 {[%clk 0:00:13]} 57. Nd6 {[%clk 0:00:15]}  Rxg4 {[%clk 0:00:12]} 58. Rxf7+ {[%clk 0:00:14]}  Kg8 {[%clk 0:00:12]} 59. Rd7 {[%clk 0:00:11]}  Rxd4+ {[%clk 0:00:12]} 60. Ke6 {[%clk 0:00:11]}  Rf4 {[%clk 0:00:10]} 61. Nf7 {[%clk 0:00:10]}  Re4+ {[%clk 0:00:09]} 62. Kd5 {[%clk 0:00:07]}  Rd4+ {[%clk 0:00:08]} 0-1


[Site "https://www.chess.com"]

[Event "Titled Tuesday Blitz February 22 Late 2022"]
[White "Khater, Sherif"]
[Black "Lopez Perdomo, Juan David"]
[WhiteFideId "2034280"]
[BlackFideId "4405137"]
[WhiteElo "2589"]
[BlackElo "1997"]
[Result "0-1"]
[Round "05"]
[TimeControl "180+1"]
[Date "2022.02.23"]
[WhiteClock "0:00:22"]
[BlackClock "0:00:08"]

1. b3 {[%clk 0:03:00]}  e6 {[%clk 0:03:00]} 2. Bb2 {[%clk 0:03:01]}  d5 {[%clk 0:03:01]} 3. f4 {[%clk 0:03:01]}  Nf6 {[%clk 0:03:01]} 4. Nf3 {[%clk 0:03:01]}  Be7 {[%clk 0:02:27]} 5. e3 {[%clk 0:03:02]}  c5 {[%clk 0:02:27]} 6. Bb5+ {[%clk 0:03:02]}  Bd7 {[%clk 0:02:27]} 7. Bxd7+ {[%clk 0:03:02]}  Nbxd7 {[%clk 0:02:27]} 8. O-O {[%clk 0:03:03]}  a6 {[%clk 0:02:27]} 9. d3 {[%clk 0:03:02]}  b5 {[%clk 0:02:24]} 10. Nbd2 {[%clk 0:03:02]}  Qb6 {[%clk 0:02:21]} 11. Kh1 {[%clk 0:03:02]}  Ng4 {[%clk 0:02:10]} 12. Qe2 {[%clk 0:03:02]}  c4 {[%clk 0:02:09]} 13. Bd4 {[%clk 0:02:59]}  Bc5 {[%clk 0:02:07]} 14. Bxc5 {[%clk 0:02:24]}  Nxc5 {[%clk 0:01:43]} 15. Nd4 {[%clk 0:02:20]}  Nf6 {[%clk 0:01:22]} 16. dxc4 {[%clk 0:02:20]}  dxc4 {[%clk 0:00:55]} 17. bxc4 {[%clk 0:02:20]}  bxc4 {[%clk 0:00:48]} 18. Nxc4 {[%clk 0:02:21]}  Qc7 {[%clk 0:00:49]} 19. Ne5 {[%clk 0:02:17]}  O-O {[%clk 0:00:39]} 20. h3 {[%clk 0:02:12]}  Nfe4 {[%clk 0:00:38]} 21. Qe1 {[%clk 0:02:11]}  f6 {[%clk 0:00:35]} 22. Nd3 {[%clk 0:02:11]}  e5 {[%clk 0:00:35]} 23. Nxc5 {[%clk 0:02:07]}  Qxc5 {[%clk 0:00:33]} 24. Ne6 {[%clk 0:02:06]}  Qxc2 {[%clk 0:00:30]} 25. Nxf8 {[%clk 0:02:06]}  Rxf8 {[%clk 0:00:30]} 26. fxe5 {[%clk 0:02:06]}  Qc7 {[%clk 0:00:26]} 27. Rf4 {[%clk 0:01:53]}  Qxe5 {[%clk 0:00:25]} 28. Rc1 {[%clk 0:01:48]}  g5 {[%clk 0:00:20]} 29. Rf3 {[%clk 0:01:48]}  h5 {[%clk 0:00:17]} 30. Rc4 {[%clk 0:01:40]}  h4 {[%clk 0:00:17]} 31. Qb1 {[%clk 0:01:38]}  Ng3+ {[%clk 0:00:15]} 32. Kg1 {[%clk 0:01:33]}  Kg7 {[%clk 0:00:10]} 33. Rd4 {[%clk 0:01:09]}  Rf7 {[%clk 0:00:09]} 34. Rd8 {[%clk 0:01:08]}  Ne2+ {[%clk 0:00:06]} 35. Kf2 {[%clk 0:01:07]}  Ng3 {[%clk 0:00:06]} 36. Rb8 {[%clk 0:00:57]}  Ne4+ {[%clk 0:00:07]} 37. Kg1 {[%clk 0:00:57]}  Nd2 {[%clk 0:00:07]} 38. Qd3 {[%clk 0:00:20]}  Nxf3+ {[%clk 0:00:06]} 39. gxf3 {[%clk 0:00:21]}  Qxb8 {[%clk 0:00:07]} 40. Qf5 {[%clk 0:00:20]}  Qg3+ {[%clk 0:00:06]} 41. Kh1 {[%clk 0:00:20]}  Rc7 {[%clk 0:00:04]} 42. Qb1 {[%clk 0:00:16]}  Qxf3+ {[%clk 0:00:04]} 43. Kg1 {[%clk 0:00:17]}  Qxe3+ {[%clk 0:00:04]} 44. Kh1 {[%clk 0:00:18]}  Rc1+ {[%clk 0:00:04]} 45. Qxc1 {[%clk 0:00:17]}  Qxc1+ {[%clk 0:00:05]} 46. Kg2 {[%clk 0:00:18]}  Qd2+ {[%clk 0:00:06]} 47. Kf3 {[%clk 0:00:18]}  Kg6 {[%clk 0:00:06]} 48. a4 {[%clk 0:00:19]}  Kf5 {[%clk 0:00:07]} 49. a5 {[%clk 0:00:20]}  Qd3+ {[%clk 0:00:08]} 50. Kg2 {[%clk 0:00:21]}  Kf4 {[%clk 0:00:08]} 51. Kf2 {[%clk 0:00:21]}  Qd2+ {[%clk 0:00:08]} 52. Kf1 {[%clk 0:00:22]}  Kg3 {[%clk 0:00:08]} 0-1


[Site "https://www.chess.com"]

[Event "Titled Tuesday Blitz February 22 Late 2022"]
[White "Kujawski, Adam"]
[Black "Zong, Davis"]
[WhiteFideId "1100920"]
[BlackFideId "30903955"]
[WhiteElo "2053"]
[BlackElo "2061"]
[Result "0-1"]
[Round "05"]
[TimeControl "180+1"]
[Date "2022.02.23"]
[WhiteClock "0:00:01"]
[BlackClock "0:00:15"]

1. e4 {[%clk 0:03:00]}  e5 {[%clk 0:02:56]} 2. Nf3 {[%clk 0:03:00]}  Nc6 {[%clk 0:02:57]} 3. Bb5 {[%clk 0:03:00]}  a6 {[%clk 0:02:57]} 4. Ba4 {[%clk 0:03:00]}  Nf6 {[%clk 0:02:56]} 5. O-O {[%clk 0:03:00]}  Be7 {[%clk 0:02:56]} 6. Re1 {[%clk 0:03:00]}  b5 {[%clk 0:02:57]} 7. Bb3 {[%clk 0:03:00]}  O-O {[%clk 0:02:57]} 8. h3 {[%clk 0:02:59]}  d6 {[%clk 0:02:58]} 9. c3 {[%clk 0:02:52]}  Na5 {[%clk 0:02:57]} 10. Bc2 {[%clk 0:02:51]}  c5 {[%clk 0:02:58]} 11. d4 {[%clk 0:02:50]}  Qc7 {[%clk 0:02:58]} 12. Nbd2 {[%clk 0:02:46]}  cxd4 {[%clk 0:02:56]} 13. cxd4 {[%clk 0:02:46]}  Nc6 {[%clk 0:02:57]} 14. d5 {[%clk 0:02:45]}  Nb4 {[%clk 0:02:58]} 15. Bb1 {[%clk 0:02:45]}  a5 {[%clk 0:02:54]} 16. a3 {[%clk 0:02:45]}  Na6 {[%clk 0:02:54]} 17. b4 {[%clk 0:02:45]}  Bd7 {[%clk 0:02:44]} 18. Qb3 {[%clk 0:02:42]}  Rfc8 {[%clk 0:02:37]} 19. Qb2 {[%clk 0:01:58]}  Qc3 {[%clk 0:02:17]} 20. Qxc3 {[%clk 0:01:54]}  Rxc3 {[%clk 0:02:17]} 21. Bb2 {[%clk 0:01:54]}  Rcc8 {[%clk 0:02:14]} 22. bxa5 {[%clk 0:01:37]}  Nc5 {[%clk 0:02:13]} 23. Bc2 {[%clk 0:01:21]}  Rxa5 {[%clk 0:02:09]} 24. Bc3 {[%clk 0:01:19]}  Raa8 {[%clk 0:02:07]} 25. Bb4 {[%clk 0:01:13]}  Na6 {[%clk 0:01:52]} 26. Bd3 {[%clk 0:01:10]}  Nxb4 {[%clk 0:01:49]} 27. axb4 {[%clk 0:01:10]}  Bd8 {[%clk 0:01:50]} 28. Bf1 {[%clk 0:00:54]}  Bb6 {[%clk 0:01:46]} 29. Rxa8 {[%clk 0:00:36]}  Rxa8 {[%clk 0:01:46]} 30. Nb1 {[%clk 0:00:36]}  Ra2 {[%clk 0:01:30]} 31. Nfd2 {[%clk 0:00:13]}  Rb2 {[%clk 0:01:28]} 32. Rd1 {[%clk 0:00:07]}  Rxb4 {[%clk 0:01:24]} 33. Nc3 {[%clk 0:00:06]}  Rb2 {[%clk 0:01:12]} 34. Bd3 {[%clk 0:00:06]}  b4 {[%clk 0:01:10]} 35. Nb5 {[%clk 0:00:04]}  b3 {[%clk 0:00:53]} 36. Nxd6 {[%clk 0:00:02]}  Bd4 {[%clk 0:00:36]} 37. N6c4 {[%clk 0:00:01]}  Ra2 {[%clk 0:00:36]} 38. Rb1 {[%clk 0:00:01]}  b2 {[%clk 0:00:35]} 39. Bc2 {[%clk 0:00:01]}  Nh5 {[%clk 0:00:26]} 40. Nf3 {[%clk 0:00:01]}  Bc3 {[%clk 0:00:19]} 41. Nfxe5 {[%clk 0:00:02]}  Bb5 {[%clk 0:00:17]} 42. Nd3 {[%clk 0:00:02]}  Bxc4 {[%clk 0:00:15]} 43. Nc5 {[%clk 0:00:02]}  Ra1 {[%clk 0:00:15]} 44. f3 {[%clk 0:00:01]}  Ba2 {[%clk 0:00:15]} 0-1


[Site "https://www.chess.com"]